fUSD/lending_fUSD_20260311
["ID","MTS","AMOUNT","RATE_DAILY","PERIOD"]
[408187232,1773195044423,-187.59,0.000206,2]
[408187233,1773195044432,-204.65,0.000206,2]
[408187234,1773195044441,-227.0,0.00020612,2]
[408187235,1773195044451,-338.0,0.00020614,2]
[408187236,1773195044460,-1000.0,0.00020644,2]
[408187237,1773195044469,-156.86,0.00020732,2]
[408187238,1773195044479,-338.0,0.00020807,2]
[408187239,1773195044488,-353.4369477,0.00020841,2]
[408187240,1773195044498,-1999.0,0.00020918,2]
[408187241,1773195044507,-502.0,0.00020938,5]
[408187242,1773195044516,-1008.03,0.00020979,2]
[408187243,1773195044525,-350.0,0.00021046,2]
[408187244,1773195044535,-227.0,0.00021102,2]
[408187245,1773195044544,-187.2,0.00021112,2]
[408187246,1773195044553,-1444.63,0.00021151,2]
[408187247,1773195044563,-227.0,0.00021157,2]
[408187248,1773195044572,-227.0,0.00021179,2]
[408187249,1773195044581,-169.48,0.00021216,2]
[408187250,1773195044591,-227.0,0.00021286,2]
[408187251,1773195044600,-227.0,0.00021338,2]
[408187252,1773195044609,-227.0,0.00021348,2]
[408187253,1773195044618,-329.0,0.00021352,2]
[408187254,1773195044627,-2477.8,0.00021459,2]
[408187255,1773195044637,-2000.0,0.00021487,2]
[408187256,1773195044646,-177.58,0.00021911,2]
[408187257,1773195044655,-300.0,0.00021917,2]
[408187258,1773195044665,-300.0,0.00021917,2]
[408187259,1773195044674,-300.0,0.00021918,2]
[408187260,1773195044684,-300.0,0.00021918,2]
[408187261,1773195044693,-5000.0,0.00021918,2]
[408187262,1773195044703,-150.0,0.00021918,2]
[408187263,1773195044712,-150.0,0.00021918,2]
[408187264,1773195044722,-150.0,0.00021973,2]
[408187265,1773195044731,-161.87934117,0.00022028,2]
[408187266,1773195044740,-1061.91,0.0002211,2]
[408187267,1773195044750,-5800.0,0.00022113,2]
[408187268,1773195044759,-215.1,0.00022158,2]
[408187269,1773195044768,-187.2,0.00022158,2]
[408187270,1773195044777,-165.24,0.00022185,14]
[408187271,1773195044787,-533.36,0.00022241,2]
[408187272,1773195044796,-13427.278525,0.00022446,2]
[408187273,1773195044805,-346.37,0.00022515,2]
[408187274,1773195044814,-956.71076754,0.00022716,2]
[408187275,1773195044824,-19263.56,0.00023,7]
[408187276,1773195044833,-160.0,0.00023,2]
[408187277,1773195044843,-2996.0308076,0.00023012,2]
[408187278,1773195044852,-2000.0,0.000232,2]
[408187279,1773195044862,-260.08,0.00023207,2]
[408187280,1773195044871,-169.48,0.00023338,2]
[408187281,1773195044881,-1444.63,0.00023501,2]
[408187282,1773195044890,-2000.0,0.00023635,2]
[408187283,1773195044900,-151.0,0.00023711,2]
[408187284,1773195044909,-496.2,0.00023781,2]
[408187285,1773195044919,-304.98583032,0.00023885,2]
[408187286,1773195044928,-496.2,0.00024375,2]
[408187287,1773195044938,-710.46,0.000244,2]
[408187288,1773195044947,-1000.0,0.00024658,2]
[408187289,1773195044956,-150.0,0.00024658,2]
[408187290,1773195044966,-925.072,0.0002485,2]
[408187291,1773195044977,-1217.178,0.0002485,2]
[408187292,1773195044987,-502.0,0.00024875,9]
[408187293,1773195044996,-151.0,0.000249,2]
[408187294,1773195045006,-453266.508271,0.000249,3]
[408187295,1773195045015,-496.22567832,0.0002497,2]
[408187296,1773195045024,-150.0,0.00025,2]
[408187297,1773195045034,-688.0,0.00025197,10]
[408187298,1773195045043,-5996.0,0.00025417,2]
[408187299,1773195045053,-3751.0,0.00025417,2]
[408187300,1773195045062,-2461.0,0.00025417,2]
[408187301,1773195045072,-169.48,0.0002546,2]
[408187302,1773195045081,-2000.0,0.00025784,2]
[408187303,1773195045091,-1444.63,0.00025851,120]
[408187304,1773195045100,-150.0,0.0002589,2]
[408187305,1773195045109,-200.0,0.0002599,2]
[408187306,1773195045119,-270.0,0.0002599,2]
[408187307,1773195045129,-150.158,0.0002599,2]
[408187308,1773195045138,-150.293,0.0002599,2]
[408187309,1773195045147,-150.272,0.0002599,2]
[408187310,1773195045157,-150.0,0.0002599,2]
[408187311,1773195045167,-150.508,0.0002599,2]
[408187312,1773195045177,-3521.771,0.0002599,2]
[408187313,1773195045186,-1347.32,0.0002599,2]
[408187314,1773195045196,-621.67,0.0002599,2]
[408187315,1773195045205,-1283.862,0.0002599,2]
[408187316,1773195045214,-158.0,0.00026,2]
[408187317,1773195045224,-240.04,0.000261,14]
[408187318,1773195045233,-656.08,0.00026217,2]
[408187319,1773195045242,-215.09588616,0.0002635,2]
[408187320,1773195045252,-2000.0,0.000268,2]
[408187321,1773195045265,-956.71076754,0.00026823,2]
[408187322,1773195045275,-150.0,0.00027185,2]
[408187323,1773195045284,-150.0,0.00027369,2]
[408187324,1773195045294,-185.348312,0.00027397,2]
[408187325,1773195045303,-185.348312,0.00027397,2]
[408187326,1773195045312,-185.348312,0.00027397,2]
[408187327,1773195045321,-185.348312,0.00027397,2]
[408187328,1773195045331,-185.348312,0.00027397,2]
[408187329,1773195045340,-185.348312,0.00027397,2]
[408187330,1773195045350,-185.348312,0.00027397,2]
[408187331,1773195045359,-185.348312,0.00027397,2]
[408187332,1773195045368,-185.348312,0.00027397,2]
[408187333,1773195045377,-185.348312,0.00027397,2]
[408187334,1773195045386,-185.348312,0.00027397,2]
[408187335,1773195045394,-185.348312,0.00027397,2]
[408187336,1773195045403,-300.0,0.00027397,2]
[408187337,1773195045412,-1000.0,0.00027397,20]
[408187338,1773195045421,-12930.97,0.00027397,10]
[408187339,1773195045431,-710.46,0.000278,2]
[408187340,1773195045441,-153.47,0.0002781,2]
[408187341,1773195045450,-1444.63,0.00028201,120]
[408187342,1773195045459,-19263.56,0.000284,7]
[408187343,1773195045468,-155.56,0.000284,7]
[408187344,1773195045476,-5358.59,0.00028417,2]
[408187345,1773195045485,-3751.0,0.00028417,2]
[408187346,1773195045494,-2461.0,0.00028417,2]
[408187347,1773195045504,-150.0,0.00028544,2]
[408187348,1773195045513,-502.0,0.00028812,12]
[408187349,1773195045522,-2806.0,0.000289,3]
[408187350,1773195045531,-161.0,0.000289,3]
[408187351,1773195045540,-2341.94449637,0.000289,3]
[408187352,1773195045629,-9.27132128,0.000289,3]
[408187353,1773195045642,-455.78418235,0.000289,3]
[408187355,1773195045652,-327.55430245,0.00029,120]
[408187356,1773195045661,-150.0,0.00029971,2]
[408187357,1773195045670,-489.0,0.00030137,30]
[408187358,1773195045679,-880.58103636,0.00030137,10]
[408187359,1773195045688,-2000.0,0.000305,2]
[408187360,1773195045698,-2753.39690249,0.0003059,3]
[408187361,1773195045814,-151.0,0.00020173,2]
[408187362,1773195045823,-151.76055043,0.00021918,2]
[408187363,1773195045832,-254.22693012,0.00022385,2]
[408187364,1773195045843,-53.60309751,0.0003059,3]
[408187365,1773195045852,-2807.0,0.0003059,3]
[408187366,1773195045870,-710.46,0.000308,2]
[408187367,1773195045881,-161.0,0.0003091,3]
[408187368,1773195045890,-956.71076754,0.0003093,2]
[408187369,1773195045901,-3751.0,0.00031417,2]
[408187370,1773195045912,-2461.0,0.00031417,2]
[408187371,1773195045921,-150.0,0.0003147,2]
[408187372,1773195045931,-151.0,0.00031507,7]
[408187373,1773195045941,-151.0,0.00031507,7]
[408187374,1773195045951,-151.0,0.00031507,7]
[408187375,1773195045962,-151.0,0.00031507,7]
[408187376,1773195045972,-151.0,0.00031507,7]
[408187377,1773195045981,-151.0,0.00031507,7]
[408187378,1773195045990,-151.0,0.00031507,7]
[408187379,1773195045999,-151.0,0.00031507,7]
[408187380,1773195046008,-151.0,0.00031507,7]
[408187381,1773195046017,-189.996751,0.00031507,7]
[408187382,1773195046027,-158.0,0.00032133,3]
[408187383,1773195046036,-502.0,0.0003275,16]
[408187384,1773195046048,-200.03,0.000328,14]
[408187385,1773195046058,-300.0,0.00032877,60]
[408187386,1773195046068,-319.0,0.00032877,120]
[408187387,1773195046078,-300.0,0.00032877,60]
[408187388,1773195046088,-174.56,0.000329,14]
[408187389,1773195046097,-3046.5698,0.00033,120]
[408187390,1773195046107,-150.0,0.00033043,2]
[408187391,1773195046117,-542.06913408,0.0003363,2]
[408187392,1773195046129,-12075.41488021,0.0003363,2]
[408187393,1773195046139,-2000.0,0.000342,2]
[408187394,1773195046149,-19263.56,0.000344,14]
[408187395,1773195046158,-3697.078,0.00034417,2]
[408187396,1773195046168,-2461.0,0.00034417,2]
[408187397,1773195046178,-150.0,0.00034696,2]
[408187398,1773195046187,-710.46,0.000347,2]
[408187399,1773195046196,-1500.0,0.00034795,2]
[408187400,1773195046205,-956.71076754,0.00035038,2]
[408187401,1773195046215,-847.0,0.00035369,11]
[408187402,1773195046226,-1776.0,0.00035616,120]
[408187403,1773195046235,-150.0,0.0003643,2]
[408187404,1773195046244,-502.0,0.00036688,20]
[408187405,1773195046253,-2461.0,0.00037417,2]
[408187406,1773195046267,-155.56,0.000377,14]
[408187407,1773195046276,-2000.0,0.000379,2]
[408187408,1773195046285,-184.37643722,0.000379,120]
[408187409,1773195046294,-151.0,0.0003799,7]
[408187410,1773195046304,-185.348312,0.0003799,7]
[408187411,1773195046313,-185.348312,0.0003799,7]
[408187412,1773195046322,-185.348312,0.0003799,7]
[408187413,1773195046332,-185.348312,0.0003799,7]
[408187414,1773195046341,-656.08,0.00037998,2]
[408187415,1773195046350,-150.0,0.00038034,30]
[408187416,1773195046359,-259.46079196,0.000381,33]
[408187417,1773195046369,-226.56078508,0.00038216,80]
[408187418,1773195046378,-150.0,0.00038252,2]
[408187419,1773195046388,-956.71076754,0.00039145,2]
[408187420,1773195046398,-2662.0,0.0004,120]
[408187421,1773195046408,-153.0,0.0004,120]
[408187422,1773195046417,-153.0,0.0004,120]
[408187423,1773195046427,-237.75,0.0004,120]
[408187424,1773195046437,-156.84,0.0004,120]
[408187425,1773195046446,-219.22737945,0.0004,120]
[408187426,1773195046663,-23.60873634,0.00025784,2]
[408187427,1773195068112,2421.624486,7.945e-05,2]
[408187428,1773195217834,7422.0,0.0001343,2]
[408187429,1773195224806,156.385514,9.5e-05,2]
[408187430,1773195224828,1052.874486,9.5e-05,2]
[408187431,1773195225002,1209.26,0.0001,2]
[408187432,1773195225421,1209.26,0.000105,2]
[408187433,1773195225652,1209.26,0.00011,2]
[408187434,1773195225849,1209.26,0.000115,2]
[408187435,1773195226128,1209.26,0.00012001,2]
[408187436,1773195226248,1209.26,0.00012501,2]
[408187437,1773195226445,1209.26,0.00013001,2]
[408187438,1773195601747,371.737028,0.00013464,2]
[408187454,1773195929117,5688.65,0.00013465,2]
[408187455,1773195934525,-1209.26,0.00013501,2]
[408187456,1773195934552,-250.0,0.00013501,2]
[408187457,1773195934583,-2081.49,0.00013501,2]
[408187458,1773195937474,-2918.51,0.00013501,2]
[408187459,1773195937505,-261.0,0.00013501,2]
[408187460,1773195937533,-1005.32481536,0.0001368,2]
[408187461,1773195937560,-430.34036928,0.00013698,2]
[408187462,1773195940502,-769.65963072,0.00013698,2]
[408187463,1773195940530,-173.84,0.00013699,2]
[408187464,1773195940559,-519.72,0.00013699,2]
[408187465,1773195940590,-300.0,0.00013834,2]
[408187466,1773195946810,-1541.20450536,0.00013835,2]
[408187467,1773195949763,-10000.01,0.00013835,2]
[408187468,1773195952711,-4810.16549464,0.00013835,2]
[408187469,1773195965095,-169.38,0.00013872,2]
[408187514,1773195979889,578.89,0.00011507,2]
[408187603,1773196014234,166.66,0.00013303,2]
[408187612,1773196019411,-166.66,0.00013583,2]
[408187618,1773196036670,904.00581093,8.6e-05,2]
[408187619,1773196037339,500.0,8.6e-05,2]
[408187620,1773196037827,522.14872557,8.6e-05,2]
[408187621,1773196045528,500.0,8.863e-05,2]
[408187622,1773196045870,500.0,8.863e-05,2]
[408187623,1773196047976,637.61999316,8.863e-05,2]
[408187624,1773196050343,500.0,8.863e-05,2]
[408187625,1773196050867,500.0,8.863e-05,2]
[408187626,1773196051350,500.0,8.863e-05,2]
[408187627,1773196051493,881.14285643,8.863e-05,2]
[408187628,1773196051844,500.0,8.863e-05,2]
[408187629,1773196052361,669.12630316,8.863e-05,2]
[408187630,1773196052716,543.25685673,8.863e-05,2]
[408187631,1773196056590,500.0,8.863e-05,2]
[408187632,1773196057062,500.0,8.863e-05,2]
[408187633,1773196057522,500.0,8.863e-05,2]
[408187634,1773196074212,842.70945402,0.00013652,2]
[408187635,1773196074234,10000.01,0.00013652,2]
[408187636,1773196074255,5817.41054598,0.00013652,2]
[408187649,1773196158075,945.74,0.00013699,2]
[408187650,1773196211544,500.0,0.00013425,2]
[408187651,1773196220714,150.0,0.00013438,2]
[408187658,1773196231463,-166.66,0.00013863,2]
[408187660,1773196231473,-264.0,0.00013863,2]
[408187661,1773196231482,-498.17206182,0.000139,2]
[408187663,1773196231571,-407.0,0.000139,2]
[408187664,1773196231586,-295.99999997,0.000139,2]
[408187665,1773196231625,-778.48841245,0.000139,2]
[408187666,1773196231636,-1209.26,0.00014001,2]
[408187667,1773196231645,-150.0,0.00014008,2]
[408187668,1773196231655,-300.0,0.00014054,2]
[408187669,1773196231668,-1200.0,0.00014054,2]
[408187670,1773196231677,-300.0,0.00014054,2]
[408187671,1773196231688,-150.0,0.00014054,2]
[408187672,1773196231697,-5990.69530067,0.00014055,2]
[408187673,1773196231735,-49131.54297568,0.00014055,2]
[408187675,1773196231746,-12831.0,0.00014062,2]
[408187677,1773196231759,-11003.37751017,0.00014064,2]
[408187679,1773196231770,-500.0,0.00014065,2]
[408187682,1773196231782,-500.0,0.00014065,2]
[408187684,1773196231795,-500.0,0.00014065,2]
[408187686,1773196231806,-337.53416247,0.00014065,2]
[408187688,1773196231816,-173.924,0.00014065,2]
[408187690,1773196231826,-3739.587,0.00014065,2]
[408187693,1773196231837,-762.67773707,0.00014065,2]
[408187695,1773196231847,-890.95167068,0.00014065,2]
[408187697,1773196231857,-204.30932807,0.00014065,2]
[408187698,1773196231868,-500.84787046,0.00014073,2]
[408187699,1773196231878,-506.34018222,0.00014073,2]
[408187700,1773196231888,-501.50731997,0.00014073,2]
[408187701,1773196231898,-500.0,0.00014073,2]
[408187702,1773196231908,-166.66,0.00014143,2]
[408187703,1773196231919,-500.0,0.00014164,2]
[408187704,1773196231928,-500.0,0.00014164,2]
[408187705,1773196231939,-500.0,0.00014164,2]
[408187706,1773196231949,-500.0,0.00014164,2]
[408187707,1773196231959,-500.0,0.00014164,2]
[408187708,1773196231969,-500.0,0.00014164,2]
[408187709,1773196231980,-500.0,0.00014164,2]
[408187710,1773196231990,-500.0,0.00014164,2]
[408187711,1773196232000,-500.0,0.00014164,2]
[408187712,1773196232010,-500.0,0.00014164,2]
[408187713,1773196232021,-500.0,0.00014164,2]
[408187714,1773196232035,-500.0,0.00014164,2]
[408187715,1773196232053,-500.0,0.00014164,2]
[408187716,1773196232065,-500.0,0.00014164,2]
[408187717,1773196232075,-500.0,0.00014164,2]
[408187718,1773196232085,-500.0,0.00014164,2]
[408187719,1773196232094,-500.0,0.00014164,2]
[408187720,1773196232104,-500.0,0.00014164,2]
[408187721,1773196232114,-500.0,0.00014164,2]
[408187722,1773196232124,-500.0,0.00014164,2]
[408187723,1773196232135,-500.0,0.00014164,2]
[408187724,1773196232145,-500.0,0.00014164,2]
[408187725,1773196232155,-500.0,0.00014164,2]
[408187726,1773196232164,-500.0,0.00014164,2]
[408187727,1773196232174,-500.0,0.00014164,2]
[408187728,1773196232184,-500.0,0.00014164,2]
[408187729,1773196232194,-500.0,0.00014164,2]
[408187730,1773196232204,-500.0,0.00014164,2]
[408187731,1773196232214,-500.0,0.00014164,2]
[408187732,1773196232224,-500.0,0.00014164,2]
[408187733,1773196232234,-500.0,0.00014164,2]
[408187734,1773196232244,-500.0,0.00014164,2]
[408187735,1773196232254,-307.36655284,0.00014164,2]
[408187736,1773196232264,-500.0,0.00014164,2]
[408187737,1773196232274,-500.0,0.00014164,2]
[408187738,1773196232283,-500.0,0.00014164,2]
[408187739,1773196232293,-500.0,0.00014164,2]
[408187740,1773196232303,-500.0,0.00014164,2]
[408187741,1773196232313,-500.0,0.00014164,2]
[408187742,1773196232323,-500.0,0.00014164,2]
[408187743,1773196232332,-500.0,0.00014164,2]
[408187744,1773196232342,-500.0,0.00014164,2]
[408187745,1773196232352,-500.0,0.00014164,2]
[408187746,1773196232362,-500.0,0.00014164,2]
[408187747,1773196232372,-224.2357575,0.00014164,2]
[408187748,1773196232383,-500.0,0.00014164,2]
[408187749,1773196232393,-500.0,0.00014164,2]
[408187750,1773196232404,-500.0,0.00014164,2]
[408187751,1773196232413,-500.0,0.00014164,2]
[408187752,1773196232424,-500.0,0.00014164,2]
[408187753,1773196232437,-500.0,0.00014164,2]
[408187754,1773196232447,-433.20044258,0.00014164,2]
[408187755,1773196232456,-499.99999999,0.00014164,2]
[408187756,1773196232466,-500.0,0.00014164,2]
[408187757,1773196232476,-500.0,0.00014164,2]
[408187758,1773196232486,-500.0,0.00014164,2]
[408187759,1773196232495,-500.0,0.00014164,2]
[408187760,1773196232505,-500.0,0.00014164,2]
[408187761,1773196232515,-500.0,0.00014164,2]
[408187762,1773196232525,-500.0,0.00014164,2]
[408187763,1773196232535,-500.0,0.00014164,2]
[408187764,1773196232544,-500.0,0.00014164,2]
[408187765,1773196232554,-500.0,0.00014164,2]
[408187766,1773196232564,-284.34433604,0.00014164,2]
[408187767,1773196232574,-500.0,0.00014164,2]
[408187768,1773196232584,-500.0,0.00014164,2]
[408187769,1773196232597,-500.0,0.00014164,2]
[408187770,1773196232606,-500.0,0.00014164,2]
[408187771,1773196232616,-500.0,0.00014164,2]
[408187772,1773196232627,-500.0,0.00014164,2]
[408187773,1773196232637,-500.0,0.00014164,2]
[408187774,1773196232647,-500.0,0.00014164,2]
[408187775,1773196232658,-500.0,0.00014164,2]
[408187776,1773196232668,-500.0,0.00014164,2]
[408187777,1773196232678,-500.0,0.00014164,2]
[408187778,1773196232687,-500.0,0.00014164,2]
[408187779,1773196232697,-500.0,0.00014164,2]
[408187780,1773196232707,-500.0,0.00014164,2]
[408187781,1773196232717,-500.0,0.00014164,2]
[408187782,1773196232728,-500.0,0.00014164,2]
[408187783,1773196232738,-500.0,0.00014164,2]
[408187784,1773196232748,-500.0,0.00014164,2]
[408187785,1773196232758,-500.0,0.00014164,2]
[408187786,1773196232767,-500.0,0.00014164,2]
[408187787,1773196232777,-500.0,0.00014164,2]
[408187788,1773196232787,-500.0,0.00014164,2]
[408187789,1773196232799,-500.0,0.00014164,2]
[408187790,1773196232812,-500.0,0.00014164,2]
[408187791,1773196232822,-500.0,0.00014164,2]
[408187792,1773196232832,-500.0,0.00014164,2]
[408187793,1773196232843,-500.0,0.00014164,2]
[408187794,1773196232852,-500.0,0.00014164,2]
[408187795,1773196232875,-500.0,0.00014164,2]
[408187796,1773196232897,-500.0,0.00014164,2]
[408187797,1773196232913,-500.0,0.00014164,2]
[408187798,1773196232923,-500.0,0.00014164,2]
[408187799,1773196232933,-500.0,0.00014164,2]
[408187800,1773196232943,-500.0,0.00014164,2]
[408187801,1773196232953,-500.0,0.00014164,2]
[408187802,1773196232963,-500.0,0.00014164,2]
[408187803,1773196232973,-500.0,0.00014164,2]
[408187804,1773196232982,-500.0,0.00014164,2]
[408187805,1773196232991,-500.0,0.00014164,2]
[408187806,1773196233001,-500.0,0.00014164,2]
[408187807,1773196233011,-500.0,0.00014164,2]
[408187808,1773196233020,-500.0,0.00014164,2]
[408187809,1773196233032,-500.0,0.00014164,2]
[408187810,1773196233042,-500.0,0.00014164,2]
[408187811,1773196233052,-500.0,0.00014164,2]
[408187812,1773196233062,-500.0,0.00014164,2]
[408187813,1773196233072,-500.0,0.00014164,2]
[408187814,1773196233083,-500.0,0.00014164,2]
[408187815,1773196233092,-500.0,0.00014164,2]
[408187816,1773196233102,-196.74,0.00014164,2]
[408187817,1773196233112,-408.4947,0.00014165,2]
[408187818,1773196233417,-500.0,0.00014173,2]
[408187819,1773196233427,-500.0,0.00014173,2]
[408187820,1773196233444,-500.0,0.00014173,2]
[408187821,1773196233453,-500.0,0.00014173,2]
[408187822,1773196233464,-167.23452348,0.00014173,2]
[408187823,1773196233473,-2000.0,0.00014348,2]
[408187824,1773196233483,-945.74,0.00014384,2]
[408187825,1773196233492,-166.66,0.00014423,2]
[408187826,1773196233502,-196.75738103,0.00014438,2]
[408187827,1773196233512,-730.0,0.00014467,2]
[408187828,1773196233522,-890.95167066,0.00014483,2]
[408187829,1773196233531,-175.64517432,0.00014495,2]
[408187830,1773196233540,-1209.26,0.00014501,2]
[408187831,1773196233549,-483.23283684,0.00014501,2]
[408187832,1773196233558,-483.23283684,0.00014501,2]
[408187833,1773196233567,-483.23283684,0.00014501,2]
[408187834,1773196233577,-483.23283684,0.00014501,2]
[408187835,1773196233588,-483.23283684,0.00014501,2]
[408187836,1773196233599,-483.23283684,0.00014501,2]
[408187837,1773196233609,-483.23283684,0.00014501,2]
[408187838,1773196233619,-483.23283684,0.00014501,2]
[408187839,1773196233630,-483.23283684,0.00014501,2]
[408187840,1773196233643,-483.23283684,0.00014501,2]
[408187841,1773196233653,-483.23283684,0.00014501,2]
[408187842,1773196233662,-617.0,0.00014601,2]
[408187843,1773196233671,-156.0,0.00014601,2]
[408187844,1773196233681,-91182.86565153,0.00014618,2]
[408187845,1773196233695,-4332.78144762,0.00014618,2]
[408187846,1773196233706,-4518.24254063,0.00014618,2]
[408187847,1773196233715,-1392.0,0.0001463,2]
[408187848,1773196233724,-166.66,0.00014703,2]
[408187849,1773196233735,-905.0,0.00014709,2]
[408187850,1773196233745,-425.0,0.00014709,2]
[408187851,1773196233754,-350.37328312,0.00014721,2]
[408187852,1773196233764,-1000.0,0.00014721,2]
[408187853,1773196233774,-523.64362437,0.00014721,2]
[408187854,1773196233783,-303.0,0.00014739,2]
[408187855,1773196233793,-890.95167066,0.000149,2]
[408187856,1773196233803,-250.0,0.00015,2]
[408187857,1773196233813,-500.0,0.00015,30]
[408187858,1773196233822,-337.08841312,0.00015,30]
[408187859,1773196233833,-162.91158688,0.00015,30]
[408187860,1773196233843,-500.0,0.00015,30]
[408187861,1773196233852,-606.74932382,0.00015,30]
[408187862,1773196233861,-500.0,0.00015,30]
[408187863,1773196233871,-500.0,0.00015,30]
[408187864,1773196233880,-500.0,0.00015,30]
[408187865,1773196233890,-500.0,0.00015,30]
[408187866,1773196233900,-500.0,0.00015,30]
[408187867,1773196233910,-500.0,0.00015,30]
[408187868,1773196233930,-500.0,0.00015,30]
[408187869,1773196233940,-500.0,0.00015,30]
[408187870,1773196233950,-500.0,0.00015,30]
[408187871,1773196233960,-500.0,0.00015,30]
[408187872,1773196233970,-500.0,0.00015,30]
[408187873,1773196233980,-500.0,0.00015,30]
[408187874,1773196233989,-500.0,0.00015,30]
[408187875,1773196233999,-500.0,0.00015,30]
[408187876,1773196234009,-500.0,0.00015,30]
[408187877,1773196234018,-500.0,0.00015,30]
[408187878,1773196234028,-500.0,0.00015,30]
[408187879,1773196234037,-1209.26,0.00015001,2]
[408187880,1773196234047,-169.38,0.00015028,2]
[408187881,1773196234056,-179.83,0.00015068,2]
[408187882,1773196234066,-945.74,0.00015068,2]
[408187883,1773196234076,-255.0,0.00015178,2]
[408187884,1773196234085,-5000.0,0.00015249,2]
[408187885,1773196234094,-500.0,0.00015249,2]
[408187886,1773196234104,-305.70426919,0.00015249,2]
[408187887,1773196234113,-250.0,0.00015249,2]
[408187888,1773196234124,-250.0,0.0001526,2]
[408187889,1773196234133,-500.87506024,0.00015268,2]
[408187890,1773196234143,-368.99,0.00015291,2]
[408187891,1773196234152,-420.0,0.00015396,2]
[408187892,1773196234161,-249.0,0.00015396,2]
[408187893,1773196234171,-1680.0,0.00015459,2]
[408187894,1773196234180,-1209.26,0.00015501,2]
[408187895,1773196234189,-667.0,0.00015682,2]
[408187896,1773196234199,-945.74,0.00015753,2]
[408187897,1773196234208,-2000.0,0.0001589,2]
[408187898,1773196234218,-2951.27908582,0.0001597,2]
[408187899,1773196234227,-150.88312785,0.00016,2]
[408187900,1773196234236,-1209.26,0.00016001,2]
[408187901,1773196234245,-1000.0,0.00016078,7]
[408187902,1773196234257,-14056.32,0.00016116,2]
[408187903,1773196234266,-2810.86,0.00016116,2]
[408187904,1773196234276,-2000.0,0.00016141,2]
[408187905,1773196234284,-169.38,0.00016184,2]
[408187906,1773196234293,-433.0,0.00016387,2]
[408187907,1773196234303,-500.0,0.00016438,2]
[408187908,1773196234312,-500.0,0.00016438,2]
[408187909,1773196234322,-500.0,0.00016438,2]
[408187910,1773196234331,-500.0,0.00016438,2]
[408187911,1773196234340,-179.83,0.00016438,2]
[408187912,1773196234350,-945.74,0.00016438,2]
[408187913,1773196234359,-1209.26,0.00016501,2]
[408187914,1773196234368,-558.0,0.00016712,2]
[408187915,1773196234377,-587.0,0.00016866,2]
[408187916,1773196234386,-150.99,0.00016922,2]
[408187917,1773196234395,-7999.09,0.00016922,2]
[408187918,1773196234404,-9999.99,0.00016922,2]
[408187919,1773196234413,-499.99,0.00016922,2]
[408187920,1773196234422,-999.99,0.00016922,2]
[408187921,1773196234431,-299.99,0.00016922,4]
[408187922,1773196234440,-9999.99,0.00016922,2]
[408187923,1773196234449,-76.96540507,0.00016922,2]
[408187925,1773196237532,-1312.20459493,0.00016922,2]
[408187926,1773196237541,-235.68948901,0.00016922,2]